{"text_format":"3","workbook":"xlsx","n_sheets":3,"sheets":["BoQ of Fencing","BoQ of Fencing (2026)","BoQ of Fencing (2027)"],"not_rendered":{"external_links":16,"defined_names":624},"read":"whole","date_system":"1900"}

{"sheet":"BoQ of Fencing","index":0,"n_rows":499,"n_cols":7,"rows_kept":499,"hidden":true,"merged":[[79,1,80,1],[79,6,80,6],[114,1,115,1],[114,6,115,6],[227,1,228,1],[227,6,228,6],[312,1,313,1],[312,6,313,6],[326,1,327,1],[326,6,327,6],[354,1,355,1],[354,6,355,6],[386,1,387,1],[386,6,387,6],[470,1,471,1],[470,6,471,6]]}
[]
["ITEM NO","DESCRIPTION","UNIT","QTY","DURATION","RATE","AMOUNT"]
[]
[null,"BILL NO 1"]
[null,"PRELIMINARIES AND GENERAL"]
[]
[null,"FIXED COSTS"]
[null,"Site Establishment for: Delivery of Office Converted Containers","Once Off",2]
[null,"Site Establishment for: Delivery of 9m Open Plan Container (Dining Area)","Once Off",1]
[null,"Site Establishment for: Delivery of Kitchen Converted Container","Once Off",1]
[null,"Site Establishment for: Delivery of Steel Storage Container","Once Off",1]
[null,"Site De-Establishment for: Collection of Office Converted Containers","Once Off",2]
[null,"Site De-Establishment for: Collection of 9m Open Plan Container","Once Off",1]
[null,"Site De-Establishment for: Collection of Kitchen Converted Container","Once Off",1]
[null,"Site De-Establishment for: Collection of Steel Storage Container","Once Off",1]
[null,"Site Establishment for: Delivery of Hired Plant","Once Off",1]
[null,"Site Establishment for: Collection of Hired Plant","Once Off",1]
[null,"Medicals - Entry","Once Off",48]
[null,"Medicals - Exit","Once Off",48]
[null,"Standard PPE","Once Off",48]
[null,"Safety File","Once Off",1]
[null,"Security Clearance Certification","No",48]
[null,"Delivery and Collection of Portable Flushable Toilets","Once Off",4]
[]
[null,"TIME RELATED COSTS"]
[null,"Light Driven Vehicle (2 x 4)","Per Month  ",1,8]
[null,"Home-Work-Home (22 Seater Bus)","Per Month  ",2,8]
[null,"3 x 6m Office Converted Containers","Per Month  ",2,8]
[null,"3 x 9m Open Plan Container","Per Month  ",1,8]
[null,"3 x 6m Kitchen Converted Container L-6m","Per Month  ",1,8]
[null,"3.4 x 6m Steel Storage Container L-6m","Per Month  ",1,8]
[null,"Portable Flushable Toilets with handwash basin (To be serviced once a week)","Per Month  ",2,8]
[null,"Sub-Total for P&Gs:"]
[null,"Hired Plant Usage:"]
[null,"TLB","Days",84]
[null,"Water tank","Days",84]
[null,"Cherry Picker","Days",84]
[null,"12m3 Tipper Truck","Days",84]
[null,"Rammer","Days",84]
[null,"Crane Truck","Days",84]
[null,"Front End Loader","Days",84]
[null,"Excavator (to include Pecker and Moil, when needed)","Days",42]
[null,"Generator ","Days",63]
[null,"Grader","Days",42]
[null,"10 Ton Roller Compactor","Days",42]
[null,"Plate Compactor","Days",42]
[null,"Sub-Total for Hired Plant Usage:"]
[]
[null,"RESOURCES"]
[]
[null,"Design Crew"]
[null,"Electrical Engineer or Technologist [Professionally Registered with ECSA and Minimum of 5 Years Exp]","Hours",1,{"v":1301.3333333333333,"d":"1301"}]
[null,"Civil Engineer or Technologist [Professionally Registered with ECSA and Minimum of 5 Years Exp]","Hours",1,{"v":1301.3333333333333,"d":"1301"}]
[null,"ICT Specialist (5-10 Years Exp)","Hours",1,{"v":1301.3333333333333,"d":"1301"}]
[null,"Draughtsman [Minimum 5 Years Exp]","Hours",1,{"v":1301.3333333333333,"d":"1301"}]
[null,"Structural Engineer or Technologist [Professionally Registered with ECSA and Minimum of 5 Years Exp]","Hours",1,{"v":1301.3333333333333,"d":"1301"}]
[null,"Geotechnical Engineer or Technologist [Professionally Registered with ECSA and Minimum of 5 Years Exp]","Hours",1,{"v":1301.3333333333333,"d":"1301"}]
[null,"Control and Instrumentation Engineer or Technologist [Professionally Registered with ECSA and Minimum of 5 Years Exp]","Hours",1,{"v":1301.3333333333333,"d":"1301"}]
[]
[null,"Site Crew"]
[null,"Project Manager [Professionally Registered with SACPCMP and Minimum of 5 Years Exp]","Hours",1,{"v":1301.3333333333333,"d":"1301"}]
[null,"Site Civil Supervisor (5-10 Years Exp)","Hours",1,{"v":1301.3333333333333,"d":"1301"}]
[null,"Site Electrical Supervisor (5-10 Years Exp)","Hours",1,{"v":1301.3333333333333,"d":"1301"}]
[null,"Environmental Officer (1-5 Years Exp)","Hours",1,{"v":1301.3333333333333,"d":"1301"}]
[null,"Safety Officer (1-5 Years Exp)","Hours",1,{"v":1301.3333333333333,"d":"1301"}]
[null,"Quality Officer (1-5 Years Exp)","Hours",1,{"v":1301.3333333333333,"d":"1301"}]
[null,"Land Surveyor [Professionally Registered with SAGC and Minimum of 3 Years Exp]","Hours",1,{"v":1301.3333333333333,"d":"1301"}]
[null,"Civil Technician (1-5 Years Exp)","Hours",1,{"v":1301.3333333333333,"d":"1301"}]
[null,"General Worker","Hours",12,{"v":1301.3333333333333,"d":"1301"}]
[null,"Semi-skilled Labour","Hours",12,{"v":1301.3333333333333,"d":"1301"}]
[null,"Plant Operator","Hours",1,{"v":1301.3333333333333,"d":"1301"}]
[null,"Concrete hand","Hours",1,{"v":1301.3333333333333,"d":"1301"}]
[null,"IT Engineer","Hours",1,{"v":650.6666666666666,"d":"651"}]
[null,"Electrician","Hours",1,{"v":650.6666666666666,"d":"651"}]
[null,"Senior Technician","Hours",2,{"v":650.6666666666666,"d":"651"}]
[null,"Assistant Technician","Hours",2,{"v":650.6666666666666,"d":"651"}]
[null,"Document Controller [Minimum 3 Years Exp]","Hours",1,{"v":1301.3333333333333,"d":"1301"}]
[null,"Sub-Total for Design and Site Resources:"]
[]
[null,"Carried to Final Summary"]
[]
[null,"BUILDERS WORK"]
[null,"BILL NO 1: PRELIMINARIES AND GENERAL (PROVISIONAL)"]
[]
["ITEM NO","DESCRIPTION","UNIT","QTY",null,"RATE","AMOUNT"]
[]
[null,"BILL NO 2"]
[null,"ALTERATIONS"]
[]
[null,"SUPPLEMENTARY PREAMBLES"]
[null,"View site:"]
[]
[null,"Before submitting their tender the contractor shall visit the site and satisfy themselves as to the nature and extent of the work to be done and the value of the materials contained in the buildings or portions of the buildings to be demolished. No claim for any variations of the contract sum in respect of the nature and extent of the work or of inferior or damaged materials will be entertained"]
[]
[null,"Old materials to become property of the Contractor:"]
[]
[null,"Old materials from alterations, except where desrcibed as to be re-used or handed over, become the property of the Employer"]
[]
[null,"REMOVAL OF EXISTING WORK:"]
[]
[null,"Carefully take down and removing existing gates, fence, etc. including cutting joints:"]
[]
[null,"Diamond razor mesh fencing approximately 1800mm high including poles embedded in concrete ","m",955]
[]
[null,"1200 x 1800mm high Mild steel pedestrian gate including all necessary accessories","No",3]
[]
[null,"3500mm wide gate","No",1]
[]
[null,"REMOVAL OF RUBBISH, DISUSED MATERIALS, ETC"]
[]
[null,"Removal of rubbish, disused materials, etc"]
[]
[null,"Remove from site all rubbish, disused or unwanted materials around the perimeter fence of the building and cart away to an area to be directed by the Site/Project Manager","Item",1]
[]
[null,"Carried to Final Summary"]
[]
[null,"BUILDERS WORK"]
[null,"BILL NO 2: ALTERATIONS (PROVISIONAL)"]
[]
["ITEM NO","DESCRIPTION","UNIT","QTY",null,"RATE","AMOUNT"]
[]
[null,"BILL NO 3"]
[null,"EARTHWORKS"]
[]
[null,"SUPPLEMENTARY PREAMBLES"]
[null,"Nature of ground:"]
[]
[null,"The nature of the ground is assumed to be gravel, therefore \"earth\", but possibly interspersed with \"soft rock\" or \"hard rock\""]
[null,"Should the Contractor encounter any \"soft\" or \"hard\" rock in the excavations, he shall immediately notfiy the Engineer who shall be the sole arbiter as to what constitutes \"soft\" or \"hard\" rock for final account purposes"]
[]
[null,"Scanning:"]
[]
[null,"Scanning of underground services and utilities shall precede all excavation works","Days",3]
[]
[null,"Site Clearance:"]
[]
[null,"Allow for clearing the area of the site to be built upon of grass, weeds, shrubs, debris, etc, including grubbing up all roots, scoffling up as required and cart away all vegetation and debris","m2",955]
[]
[null,"Strip average 150mm thick layer of topsoil and recompact (measures elsewhere)","m3",{"v":688.5,"d":"688.50"}]
[]
[null,"EXCAVATIONS, FILLING, ETC OTHER THAN BULK:"]
[]
[null,"Excavation in earth not exceeding 2m deep:"]
[]
[null,"Trenches (Anti-Tunneling and Cable Sleeves)","m3",{"v":453.625,"d":"453.63"}]
[]
[null,"Holes","m3",{"v":155.728,"d":"155.73"}]
[]
[null,"Road Crossing","m3",25.919999999999998]
[]
[null,"Extra over trench and hole excavations in earth for excavation in:"]
[]
[null,"Soft rock","m3",{"v":63.527300000000004,"d":"63.53"}]
[]
[null,"Hard rock","m3",{"v":63.527300000000004,"d":"63.53"}]
[]
[null,"Extra over all excavations for carting away"]
[]
[null,"Surplus material from excavations and/or stock piles on site to a dumping site to be located by the employer","m3",{"v":635.273,"d":"635.27"}]
[]
[null,"Keeping excavations free of water"]
[]
[null,"Keeping excavations free of all water other than subtrranean water","Item",1]
[]
[null,"EARTH FILLING, ETC."]
[]
[null,"Import G5 material from commercial sources and use to fill, compact to 93% Mod. AASHTO max density:"]
[]
[null,"2% Slope from the edge of the building apron slab","m3",{"v":780.3000000000001,"d":"780.30"}]
[]
[null,"Compaction of surfaces:"]
[]
[null,"Compaction of existing ground surface under floors, paving, etc including scarifying for a depth of 150mm, breaking  down oversize material, adding suitable material where necessary and compacting to 95% Mod AASHTO density","m2",4590]
[]
[null,"Earth filling obtained from the excavations and/or prescribed stock piles on site, compacted to 90% Mod AASHTO max density"]
[]
[null,"Backfilling to trenches, holes, etc","m3",{"v":196.08337671639663,"d":"196.08"}]
[]
[null,"Import G10 material from commercial sources and use to fill in 150mm layers, compact to 95% Mod. AASHTO max density:"]
[]
[null,"Patrol Access road","m3",330]
[]
[null,"Import G5 material from commercial sources and use to fill in 150mm layers, compact to 95% Mod. AASHTO max density:"]
[]
[null,"Backfilling to trenches, holes, etc","m3",162.35]
[]
[null,"Import G5 material from commercial sources and use to fill in 60mm layers, compact to 95% Mod. AASHTO max density:"]
[]
[null,"Sub-base"]
[]
[null,"Construct sub-base with material from commercial source compacted to 95% Mod MAASHTO"]
[]
[null,"60mm cut through the road (G5)","m3",1.7279999999999998]
[]
[null,"Import G5 material from commercial sources and use to fill in 150mm layers, compact to 90% Mod. AASHTO max density:"]
[]
[null,"Sub-base"]
[]
[null,"Construct sub-base with material from commercial source compacted to 90% Mod MAASHTO"]
[]
[null,"Aggregated surface on top of sub-base (Patrol Access road)","m2",365.09000000000003]
[]
[null,"Import G4 material from commercial sources and use to fill in 60mm layers, compact to 95% Mod. AASHTO max density:"]
[]
[null,"Base"]
[]
[null,"Construct base with material from commercial source compacted to 95% Mod MAASHTO"]
[]
[null,"60mm cut through the road (G4)","m3",1.7279999999999998]
[]
[null,"Aggregated Surface"]
[]
[null,"32mm gravel filling on top of sub-base","m2",28.799999999999997]
[]
[null,"Compaction of surfaces:"]
[]
[null,"Compaction of existing ground surface under floors, paving, etc and compacting to 90% Mod AASHTO density","m2",2749.5]
[null,"Compaction of existing ground surface under floors, paving, etc for a depth of 100mm, breaking  down oversize material, adding suitable material where necessary and compacting to 90% Mod AASHTO density","m2",4877.5]
[null,"Compaction of existing ground surface under floors, paving, etc for a depth of 260mm, breaking  down oversize material, adding suitable material where necessary and compacting to 90% Mod AASHTO density","m2",{"v":83.16437671639663,"d":"83.16"}]
[null,"Compaction of existing ground surface under floors, paving, etc for a depth of 150mm, breaking  down oversize material, adding suitable material where necessary and compacting to 93% Mod AASHTO density","m2",477.5]
[null,"Compaction of existing ground surface under floors, paving, etc for a depth of 150mm, breaking  down oversize material, adding suitable material where necessary and compacting to 95% Mod AASHTO density","m2",990.09]
[null,"Compaction of existing ground surface under floors, paving, etc for a depth of 60mm, breaking  down oversize material, adding suitable material where necessary and compacting to 95% Mod AASHTO density","m2",1069.2]
[]
[null,"Prescribed density tests on filling:"]
[]
[null,"Modified AASHTO Density test","No",100]
[]
[null,"Carried to Trade Summary"]
[]
[null,"BUILDERS WORK"]
[null,"BILL NO 3: EARTHWORKS (PROVISIONAL)"]
[]
["ITEM NO","DESCRIPTION","UNIT","QTY",null,"RATE","AMOUNT"]
[]
[null,"BILL NO 4"]
[null,"CONCRETE, FORMWORK AND REINFORCEMENT "]
[]
[null,"Cost of tests"]
[null,"The costs of making, storing and testing of concrete test cubes as required under 7 \"Tests\" of SABS 1200G shall include the cost of providing cube moulds necessary for the purpose, for testing costs and for submitting reports on the tests to the Engineer. The testing shall be undertaken by an independent firm or institution nominated by the contractor to the approval of the Engineer"]
[]
[null,"CONCRETE WORK"]
[]
[null,"UNREINFORCED CONCRETE CAST AGAINST EXCAVATED SURFACES"]
[]
[null,"50MPa/19mm concrete:"]
[]
[null,"Blinding","m3",1]
[]
[null,"35MPa/19mm concrete:"]
[]
[null,"Road crossing","m3",{"v":1.2679469155662542,"d":"1.27"}]
[]
[null,"25MPa/19mm concrete:"]
[]
[null,"Bases for Concrete poles","m3",{"v":21.599999999999998,"d":"21.60"}]
[]
[null,"20MPa/19mm concrete:"]
[]
[null,"Holes, etc","m3",{"v":88.18800000000002,"d":"88.19"}]
[]
[null,"Anti-tunnelling T-Beam","m3",47.75]
[]
[null,"15MPa/19mm concrete:"]
[]
[null,"Bases for Galvanised poles","m3",{"v":2.2,"d":"2.20"}]
[]
[null,"ROUGH FORMWORK (DEGREE OF ACCURACY III)"]
[]
[null,"Rough formwork to sides:"]
[]
[null,"Anti-tunnelling T-Beam","m2",448.85]
[]
[null,"25mm x 25mm Chamfer to Stub Columns","m",{"v":79.2,"d":"79.20"}]
[]
[]
[null,"TEST BLOCK"]
[]
[null,"Making and testing 150 x 150 x 150mm concrete strength test cube (3 sets/test) and submit report to the  Engineer/Employer (only successful tests will be paid for)","Sets",50]
[]
[null,"CONCRETE SUNDRIES"]
[]
[null,"30MPa no-shrink grout:"]
[]
[null,"Bedding approximately 50mm thick under 240mm x 240mm base plate","No",44]
[]
[]
[null,"REINFORCED CONCRETE CAST AGAINST EXCAVATED SURFACES"]
[]
[null,"35MPa/19mm concrete:"]
[]
[null,"Bases for Concrete poles and Gates Bases","m3",{"v":3.505980449450105,"d":"3.51"}]
[]
[null,"ROUGH FORMWORK (DEGREE OF ACCURACY III)"]
[]
[null,"Rough formwork to sides:"]
[]
[null,"Manhole bases and top cover","m2",{"v":26.4,"d":"26.40"}]
[]
[null,"REINFORCEMENT"]
[]
[null,"High tensile steel reinforcement to structural concrete work:"]
[]
[null,"395 Mesh panel (size: 6.00m x 2.40m x 8mm) to Manhole bases","No",{"v":3,"d":"3.00"}]
[]
[null,"High tensile steel reinforcement to structural concrete work:"]
[]
[null,"High tensile steel bar reinforcement (Y16)","t",{"v":0.83424,"d":"0.8342"}]
[]
[null,"High tensile steel bar reinforcement (Y12)","t",{"v":1.2190463999999999,"d":"1.2190"}]
[]
[null,"Mild steel bar reinforcement (R10)","t",{"v":0.285054,"d":"0.2851"}]
[]
[null,"Carried to Final Summary"]
[]
[null,"BUILDERS WORK"]
[null,"BILL NO 4: CONCRETE, FORMWORK AND REINFORCEMENT (PROVISIONAL)"]
[]
["ITEM NO","DESCRIPTION","UNIT","QTY",null,"RATE","AMOUNT"]
[]
[null,"BILL NO 5"]
[null,"STRUCTURAL STEEL"]
[]
[null,"Design and construct approximately 20m (width) x 3m (depth) bridge/culvert crossings with all fixations at all stormwater drainage interfce points. All steel members shall be galvanised","No",3]
[]
[null,"Construct and install approximately 22m (length) guardrail system with all fixation along all stormwater crossings along the fence line. Guardrail to comply with the requirements of SANS 1350","m",288]
[]
[null,"Carried to Final Summary"]
[]
[null,"BUILDERS WORK"]
[null,"BILL NO 5: STRUCTURAL STEEL (PROVISIONAL)"]
[]
["ITEM NO","DESCRIPTION","UNIT","QTY",null,"RATE","AMOUNT"]
[]
[null,"BILL NO 6"]
[null,"METALWORK"]
[]
[null,"FENCING"]
[]
[null,"SUPPLY, DELIVER and INSTALL: Single Tier Electric Fence which should be freestanding and erected at a minimum of 5m away from the mechanical fence. 3000mm high above ground level fixed to 100mm x 100mm x 3mm Square tubing 3000mm long (strain post) . Strain post will have 2x 3000m long struts one in each direction manufactured from 50mm x 50mm x 2mm Square tubing. Anti-climb system comprising of spike rails bolted along the fence top, coupled with ripper coil to be installed. All material to be galvanised coated. Strain posts to be planted in 20MPa concrete 500mm x 600mm deep all round the perimeter and struts to be planted in 20MPa concrete 500mm x 300mm deep all around the perimeter. Warning signs shall be displayed conspicuously along the length of the electric fence, fence posts and all access points. The minimum sign dimensions shall be 200mm x 100mm and the lettering and symbols shall be in accordance with SANS 60335-2-76","m",955]
[]
[null,"Supply of 3.0m high Strain posts ","No",274]
[]
[null,"Supply of 3.0m long Struts posts ","No",47]
[]
[null,"SUPPLY, DELIVER and INSTALL: Double Tier Mechanical Fence, 3000mm high above ground level fixed to 40mm x 40mm x 3mm Hot rolled steel angles 3000mm long (Intermediate post). Intermediate post will have 2x 3000m long struts one in each direction manufactured from 40mm x 40mm x 3mm Angles. Anti-climb system comprising of spike rails bolted along the fence top, coupled with ripper coil to be installed. All material to be galvanised coated. Strain posts to be planted in 20MPa concrete 300mm x 300mm deep all round the perimeter. Warning signs shall be displayed conspicuously along the length of the electric fence, fence posts and all access points. The minimum sign dimensions shall be 200mm x 100mm and the lettering and symbols shall be in accordance with SANS 60335-2-76","m",1910]
[]
[null,"Supply of 3.0m Angles","No",319]
[]
[null,"Supply of 3.0m long Struts angles","No",28]
[]
[null,"10m Overall Length of Lockable Double leaf gates, frames to have rectangular hollow sections and joints shall be contnuously welded. The overall height of the gates when fixed shall not be less than the adjacent fencing height. Each gate leaf to have roller wheels and the gate to be fitted with a sliding horizontal locking bar that is secured to a locking plate welded","No",3]
[]
[null,"Supply and install Double Leaf Swing gates where each leaf is approximately 2.15m wide x 3.73m high, incluing posts, barbed wire and need accessories and shall be hot dip galvanised.","No",6]
[]
[null,"Carried to Final Summary"]
[]
[null,"BUILDERS WORK"]
[null,"BILL NO 6: METALWORK (PROVISIONAL)"]
[]
["ITEM NO","DESCRIPTION","UNIT","QTY",null,"RATE","AMOUNT"]
[]
[null,"BILL NO 7"]
[null,"MANHOLES & COVERS, SLEEVES, CONCRETE POLES, etc"]
[]
[null,"Concrete poles"]
[]
[null,"7.5m/130 Diameter tip / 2.5kN Spun Concrete Pole. Poles shall be earthed for protection against lightning and should be earthed via 50 x 3mm earth tails or similar","No",15]
[]
[null,"Concrete manhole rings"]
[]
[null,"750 x 0.25 Ring manhole","No",15]
[]
[null,"750 x 0.50 Ring manhole","No",15]
[]
[null,"Kabelflex HDPE pipe"]
[]
[null,"DN110 (50m roll) with couplings (Remeasurable)","Roll",82]
[]
[null,"110mm Underground PVC Plain 45 Degree Bend","No",15]
[]
[null,"50mm PVC Plain 45 Degree Bend cast in concrete approximately 800mm long","No",88]
[]
[null,"Gloc Lockable Manhole Cover and Frame (SANS 50124 EN124 Class C250) in cover slab"]
[]
[null,"Manhole cover + frame with locking key","No",15]
[]
[null,"Carried to Final Summary"]
[]
[null,"BUILDERS WORK"]
[null,"BILL NO 7: EXTERNAL WORKS, MANHOLES, ROADS, SLEEVES, etc (PROVISIONAL)"]
[]
["ITEM NO","DESCRIPTION","UNIT","QTY"]
[]
[null,"BILL NO 8"]
[null,"THERMAL IMAGING SYSTEM (CCTV)"]
[]
[null,"Supply PTZ Thermal Camera","No",4]
[]
[null,"Supply Thermal Network Camera (Fixed Thermal)","No",8]
[]
[null,"Supply Fixed IR Camera","No",2]
[]
[null,"Supply CCTV NVMS Platform. Basic 1U server and 512 Camera Licenses (No failover platform)","No",15]
[]
[null,"Supply BASIC MANAGEMENT SERVER (No failover platform and No Integration platform). Dual power, RAID 1, Intel Xeon E-2336 2.9GHz, 16GB UDIMM, 3200MT/s, ECC, 2x 300GB 10K RPM SAS 12GBPS 512N 2.5IN HOT- PLUG HARD, 1x 2.4TB 10K RPM SAS 12GBPS 512E 2.5IN HOT-PLUG HARD2.4TB 10K RPM SAS 12GBPS 512E 2.5IN HOT-PLUG HARD Microsoft_WS_Standard_2019_16 cores_2VMs. 3Y Basic Onsite To 3Y ProSupport","No",1]
[]
[null,"Supply Dedicated Video data Storage Solution. 3U Bays, RAID 5 Configuration with Parity rebuild and Spare drives. Total 128TB (Usable 112TB on RAID 5). 30 Day storage @ nominal frame and quality standards, based on 70% daily motion principles of detection per 24 hours","No",1]
[]
[null,"Supply 42U CABINET. 1Meter deep, Including blanking plates, cable entry and management","No",1]
[]
[null,"Supply Clearline Surge Protected 6way Power distribution units","No",2]
[]
[null,"Supply Hisense “46” HD Digital Signage Panel.  Narrow Bezel. 24/7 operation","No",2]
[]
[null,"Supply Video Wall Brackets (specific for video walls) and cabling","No",2]
[]
[null,"Supply Video Wall HDMI decoders. H264/H265 / 4K/1080P","No",1]
[]
[null,"Supply Processor: Intel Core i7-12700 (25M Cache, up to 4.9 GHz) Memory: 16GB (2x8GB) 4400MHz DDR5 4 DIMM slots (dual channel) Up to 128GB or up to 3200MHz Non-ECC & ECC DDR4 Memory Hard Drive: M.2 2280 512GB NVM gen4 Class 40 Optical Drive: 8x DVD ROM Graphics: GeForce RTX 3070 Ti 8GB GDDR6X DX12 Graphics Card. Keyboard: KB216 Multimedia USB Keyboard Mouse: Optical Mouse Operating System: Windows 11 Professional (64Bit) + DELL MONITOR P2722H 27 INCH","No",2]
[]
[null,"Supply PTZ CAMERA Keyboard","No",2]
[]
[null,"Supply Ergonomic designed Control room furniture. 2 to 3 operator desk, cable management  and seating","Sum",1]
[]
[null,"Supply and  Installation surface cable hardware. Inclusice of Bosal steel conduits, clamps, PVC trunking, power skirting etc)","Sum",1]
[]
[null,"Supply RM-300X D00 - Remote Microphone for VX-3000 Series","No",1]
[]
[null,"Supply IP Horn Maximum sound pressure level is 124dB at 15W powered with POE+","No",15]
[]
[null,"Supply and install and splice 6 core Single mode fiber cable","m",1000]
[]
[null,"Supply and install 5.6m Galvanised steel stepped pole with access opening cover plate to have 250mm  x 250mm base plate","No",44]
[]
[null,"Supply and install 50 x 3 Flat Copper fastened to H.D Bolts with 2 Nuts and 2 Washers (450mm width)","No",12]
[]
[null,"Supply and install 4 x M20 Rods approximately 700mm long, 16 x M20 Nuts and 12 x  Washers per stub column to receive galvanised pole","No",44]
[]
[null,"Supply Fiber patch panels","No",15]
[]
[null,"Supply and install 465 x 145mm Inspection Boxes (Junction Boxes) mounted on concrete poles","No",15]
[]
[null,"Networking Hardware Per Pole and Head end equipment (Field Hardened PoE switches, media converters, SFP modules, rack/s)","No",15]
[]
[null,"Supply and install Power Reticulation with CoC for poles and head end equipment (power cabling, power points, surge protection, Power cable installation and termination certification)","No",15]
[]
[null,"Supply and install Network CAT6e Cabling, termination per pole and head end equipment","No",15]
[]
[null,"3-Phase 400V 100A IP65 DB Box","No",4]
[]
[null,"DB Support Brackets","No",4]
[]
[null,"60W LED High performance Luminaire including fixation","No",44]
[]
[null,"4mm2/4C/PCV/SWA/PVC Power supply cables","m",1200]
[]
[null,"16mm2/4C/PCV/SWA/PVC Power supply cables","m",1200]
[]
[null,"Cable termination","Sum",1]
[]
[null,"Commissioning, Testing, Integration and handover of the whole system with As Built drawings and Manuals","Days",5]
[]
[null,"Conduit Mandrel Test"]
[]
[null,"The contractor to conduct a mandrel test on the conduit pipes after installation is complete","Days",3]
[]
[null,"Plant labelling"]
[]
[null,"Anodised Aluminium tags - Label Type GA","No",103]
[]
[null,"Carried to Final Summary"]
[]
[null,"BUILDERS WORK"]
[null,"BILL NO 8: THERMAL IMAGING SYSTEM (CCTV) (PROVISIONAL)"]
[]
[]
[null,"SUMMARY"]
[]
["BILL 1","PRELIMINARIES & GENERAL"]
[]
["BILL 2","ALTERATIONS"]
[]
["BILL 3","EARTHWORKS"]
[]
["BILL 4","CONCRETE, FORMWORK AND REINFORCEMENT "]
[]
["BILL 5","STRUCTURAL STEEL"]
[]
["BILL 6","METALWORK"]
[]
["BILL 7","EXTERNAL WORKS, MANHOLES, ROADS, SLEEVES, etc"]
[]
["BILL 8","THERMAL IMAGING SYSTEM (CCTV)"]
[]
[null,"SUB-TOTAL AMOUNT (EXCL VAT)",{"$nulls":4},{"$f":"SUM(G476:G494)","v":0}]
[]
[null,"ADD: 0.25% for Contract Skills Development Goal (As per CIDB)",{"$nulls":3},{"v":0.0025,"d":"0.25%"},{"$f":"G495*F497","v":0}]
[]
[null,"TOTAL AMOUNT (EXCL VAT)",{"$nulls":4},{"$f":"G495+G497","v":0}]

{"sheet":"BoQ of Fencing (2026)","index":1,"n_rows":501,"n_cols":6,"rows_kept":501}
[]
["ITEM NO","DESCRIPTION","UNIT","QTY","RATE","AMOUNT"]
[]
[null,"BILL NO 1"]
[null,"PRELIMINARIES AND GENERAL"]
[]
[null,"FIXED COSTS"]
[null,"Site Establishment for: Delivery of Office Converted Containers","Once Off",2,null,{"$f":"D8*E8","v":0}]
[null,"Site Establishment for: Delivery of 9m Open Plan Container (Dining Area)","Once Off",1,null,{"$f":"D9*E9","v":0}]
[null,"Site Establishment for: Delivery of Kitchen Converted Container","Once Off",1,null,0]
[null,"Site Establishment for: Delivery of Steel Storage Container","Once Off",1,null,0]
[null,"Site De-Establishment for: Collection of Office Converted Containers","Once Off",2,null,0]
[null,"Site De-Establishment for: Collection of 9m Open Plan Container","Once Off",1,null,0]
[null,"Site De-Establishment for: Collection of Kitchen Converted Container","Once Off",1,null,0]
[null,"Site De-Establishment for: Collection of Steel Storage Container","Once Off",1,null,0]
[null,"Site Establishment for: Delivery of Hired Plant","Once Off",1,null,0]
[null,"Site Establishment for: Collection of Hired Plant","Once Off",1,null,0]
[null,"Medicals - Entry","Once Off",48,null,0]
[null,"Medicals - Exit","Once Off",48,null,0]
[null,"Standard PPE","Once Off",48,null,0]
[null,"Safety File","Once Off",1,null,0]
[null,"Police Clearance Certification","No",48,null,0]
[null,"Delivery and Collection of Portable Flushable Toilets","Once Off",4,null,0]
[]
[null,"TIME RELATED COSTS"]
[null,"Light Driven Vehicle (2 x 4)","Per Month  ",8,null,{"$f":"D26*E26","v":0}]
[null,"Home-Work-Home (22 Seater Bus) (2No Off)","Per Month  ",16,null,0]
[null,"3 x 6m Office Converted Containers (2No Off)","Per Month  ",16,null,0]
[null,"3 x 9m Open Plan Container","Per Month  ",8,null,0]
[null,"3 x 6m Kitchen Converted Container L-6m","Per Month  ",8,null,0]
[null,"3.4 x 6m Steel Storage Container L-6m","Per Month  ",8,null,0]
[null,"Portable Flushable Toilets with handwash basin (To be serviced once a week) (2No Off)","Per Month  ",16,null,0]
[]
[null,"Sub-Total for P&Gs:",{"$nulls":3},{"$f":"SUM(F7:F33)","v":0}]
[null,"Hired Plant Usage:"]
[null,"TLB","Days",84,null,{"$f":"D36*E36","v":0}]
[null,"Water tank","Days",84,null,{"$f":"D37*E37","v":0}]
[null,"Cherry Picker","Days",84,null,0]
[null,"12m3 Tipper Truck","Days",84,null,0]
[null,"Rammer","Days",84,null,0]
[null,"Crane Truck","Days",84,null,0]
[null,"Front End Loader","Days",84,null,0]
[null,"Excavator (to include Pecker and Moil, when needed)","Days",42,null,0]
[null,"Generator ","Days",63,null,0]
[null,"Grader","Days",42,null,0]
[null,"10 Ton Roller Compactor","Days",42,null,0]
[null,"Plate Compactor","Days",42,null,0]
[]
[null,"Sub-Total for Hired Plant Usage:",{"$nulls":3},{"$f":"SUM(F35:F48)","v":0}]
[]
[null,"RESOURCES"]
[]
[null,"Design Crew"]
[null,"Electrical Engineer or Technologist [Professionally Registered with ECSA and Minimum of 5 Years Exp]","Hours",1301,null,{"$f":"D54*E54","v":0}]
[null,"Civil Engineer or Technologist [Professionally Registered with ECSA and Minimum of 5 Years Exp]","Hours",1301,null,{"$f":"D55*E55","v":0}]
[null,"ICT Specialist [5-10 Years Exp]","Hours",1301,null,0]
[null,"Draughtsman [Minimum 5 Years Exp]","Hours",1301,null,0]
[null,"Structural Engineer or Technologist [Professionally Registered with ECSA and Minimum of 5 Years Exp]","Hours",1301,null,0]
[null,"Geotechnical Engineer or Technologist [Professionally Registered with ECSA and Minimum of 5 Years Exp]","Hours",1301,null,0]
[null,"Control and Instrumentation Engineer or Technologist [Professionally Registered with ECSA and Minimum of 5 Years Exp]","Hours",1301,null,0]
[]
[null,"Site Crew"]
[null,"Project Manager [Professionally Registered with SACPCMP and Minimum of 5 Years Exp]","Hours",1301,null,0]
[null,"Site Civil Supervisor [5-10 Year Exp]","Hours",1301,null,0]
[null,"Site Electrical Supervisor [5-10 Years Exp]","Hours",1301,null,0]
[null,"Environmental Officer [1-5 Years Exp]","Hours",1301,null,0]
[null,"Safety Officer [1-5 Years Exp]","Hours",1301,null,0]
[null,"Quality Officer [1-5 Years Exp]","Hours",1301,null,0]
[null,"Land Surveyor [Professionally Registered with SAGC and Minimum of 3 Years Exp]","Hours",{"v":1301.3333333333333,"d":"1301"},null,0]
[null,"Civil Technician [1-5 Years Exp]","Hours",1301,null,0]
[null,"General Worker [12No Off]","Hours",15616,null,0]
[null,"Semi-skilled Labour [12No Off]","Hours",15616,null,0]
[null,"Plant Operator","Hours",1301,null,0]
[null,"Concrete hand","Hours",1301,null,0]
[null,"IT Engineer","Hours",651,null,0]
[null,"Electrician","Hours",651,null,0]
[null,"Senior Technician","Hours",1301,null,0]
[null,"Assistant Technician","Hours",1301,null,0]
[null,"Document Controller [Minimum 3 Years Exp]","Hours",1301,null,0]
[]
[null,"Sub-Total for Design and Site Resources:",{"$nulls":3},{"$f":"SUM(F53:F80)","v":0}]
[]
[null,"Carried to Summary",{"$nulls":3},{"$f":"F81+F49+F34","v":0}]
[null,"BUILDERS WORK"]
[null,"BILL NO 1: PRELIMINARIES AND GENERAL (PROVISIONAL)"]
[]
["ITEM NO","DESCRIPTION","UNIT","QTY","RATE","AMOUNT"]
[]
[null,"BILL NO 2"]
[null,"ALTERATIONS"]
[]
[null,"SUPPLEMENTARY PREAMBLES"]
[null,"View site:"]
[]
[null,"Before submitting their tender the contractor shall visit the site and satisfy themselves as to the nature and extent of the work to be done and the value of the materials contained in the buildings or portions of the buildings to be demolished. No claim for any variations of the contract sum in respect of the nature and extent of the work or of inferior or damaged materials will be entertained"]
[]
[null,"Old materials to become property of the Contractor:"]
[]
[null,"Old materials from alterations, except where desrcibed as to be re-used or handed over, become the property of the Employer"]
[]
[null,"REMOVAL OF EXISTING WORK:"]
[]
[null,"Carefully take down and removing existing gates, fence, etc. including cutting joints:"]
[]
[null,"Diamond razor mesh fencing approximately 1800mm high including poles embedded in concrete ","m",955,null,{"$f":"D105*E105","v":0}]
[]
[null,"1200 x 1800mm high Mild steel pedestrian gate including all necessary accessories","No",3,null,{"$f":"D107*E107","v":0}]
[]
[null,"3500mm wide gate","No",1,null,0]
[]
[null,"REMOVAL OF RUBBISH, DISUSED MATERIALS, ETC"]
[]
[null,"Removal of rubbish, disused materials, etc"]
[]
[null,"Remove from site all rubbish, disused or unwanted materials around the perimeter fence of the building and cart away to an area to be directed by the Site/Project Manager","Item",1,null,0]
[]
[null,"Carried to Summary",{"$nulls":3},{"$f":"SUM(F104:F116)","v":0}]
[]
[null,"BUILDERS WORK"]
[null,"BILL NO 2: ALTERATIONS (PROVISIONAL)"]
[]
["ITEM NO","DESCRIPTION","UNIT","QTY","RATE","AMOUNT"]
[]
[null,"BILL NO 3"]
[null,"EARTHWORKS"]
[]
[null,"SUPPLEMENTARY PREAMBLES"]
[null,"Nature of ground:"]
[]
[null,"The nature of the ground is assumed to be gravel, therefore \"earth\", but possibly interspersed with \"soft rock\" or \"hard rock\""]
[null,"Should the Contractor encounter any \"soft\" or \"hard\" rock in the excavations, he shall immediately notfiy the Engineer who shall be the sole arbiter as to what constitutes \"soft\" or \"hard\" rock for final account purposes"]
[]
[null,"Scanning:"]
[]
[null,"Scanning of underground services and utilities shall precede all excavation works","Days",3,null,{"$f":"D135*E135","v":0}]
[]
[null,"Site Clearance:"]
[]
[null,"Allow for clearing the area of the site to be built upon of grass, weeds, shrubs, debris, etc, including grubbing up all roots, scoffling up as required and cart away all vegetation and debris","m2",955,null,{"$f":"D139*E139","v":0}]
[]
[null,"Strip average 150mm thick layer of topsoil and recompact (measures elsewhere)","m3",{"v":688.5,"d":"688.50"},null,{"$f":"D141*E141","v":0}]
[]
[null,"EXCAVATIONS, FILLING, ETC OTHER THAN BULK:"]
[]
[null,"Excavation in earth not exceeding 2m deep:"]
[]
[null,"Trenches (Anti-Tunneling and Cable Sleeves)","m3",{"v":453.625,"d":"453.63"},null,{"$f":"D147*E147","v":0}]
[]
[null,"Holes","m3",{"v":155.728,"d":"155.73"},null,{"$f":"D149*E149","v":0}]
[]
[null,"Road Crossing","m3",25.919999999999998,null,{"$f":"D151*E151","v":0}]
[]
[null,"Extra over trench and hole excavations in earth for excavation in:"]
[]
[null,"Soft rock","m3",{"v":63.527300000000004,"d":"63.53"},null,{"$f":"D155*E155","v":0}]
[]
[null,"Hard rock","m3",{"v":63.527300000000004,"d":"63.53"},null,{"$f":"D157*E157","v":0}]
[]
[null,"Extra over all excavations for carting away"]
[]
[null,"Surplus material from excavations and/or stock piles on site to a dumping site to be located by the employer","m3",{"v":635.273,"d":"635.27"},null,{"$f":"D161*E161","v":0}]
[]
[null,"Keeping excavations free of water"]
[]
[null,"Keeping excavations free of all water other than subtrranean water","Item",1,null,{"$f":"D165*E165","v":0}]
[]
[null,"EARTH FILLING, ETC."]
[]
[null,"Import G5 material from commercial sources and use to fill, compact to 93% Mod. AASHTO max density:"]
[]
[null,"2% Slope from the edge of the building apron slab","m3",{"v":780.3000000000001,"d":"780.30"},null,{"$f":"D171*E171","v":0}]
[]
[null,"Compaction of surfaces:"]
[]
[null,"Compaction of existing ground surface under floors, paving, etc including scarifying for a depth of 150mm, breaking  down oversize material, adding suitable material where necessary and compacting to 95% Mod AASHTO density","m2",4590,null,{"$f":"D175*E175","v":0}]
[]
[null,"Earth filling obtained from the excavations and/or prescribed stock piles on site, compacted to 90% Mod AASHTO max density"]
[]
[null,"Backfilling to trenches, holes, etc","m3",{"v":196.08337671639663,"d":"196.08"},null,{"$f":"D179*E179","v":0}]
[]
[null,"Import G10 material from commercial sources and use to fill in 150mm layers, compact to 95% Mod. AASHTO max density:"]
[]
[null,"Patrol Access road","m3",330,null,{"$f":"D183*E183","v":0}]
[]
[null,"Import G5 material from commercial sources and use to fill in 150mm layers, compact to 95% Mod. AASHTO max density:"]
[]
[null,"Backfilling to trenches, holes, etc","m3",162.35,null,{"$f":"D187*E187","v":0}]
[]
[null,"Import G5 material from commercial sources and use to fill in 60mm layers, compact to 95% Mod. AASHTO max density:"]
[]
[null,"Sub-base"]
[]
[null,"Construct sub-base with material from commercial source compacted to 95% Mod MAASHTO"]
[]
[null,"60mm cut through the road (G5)","m3",1.7279999999999998,null,{"$f":"D195*E195","v":0}]
[]
[null,"Import G5 material from commercial sources and use to fill in 150mm layers, compact to 90% Mod. AASHTO max density:"]
[]
[null,"Sub-base"]
[]
[null,"Construct sub-base with material from commercial source compacted to 90% Mod MAASHTO"]
[]
[null,"Aggregated surface on top of sub-base (Patrol Access road)","m2",365.09000000000003,null,{"$f":"D203*E203","v":0}]
[]
[null,"Import G4 material from commercial sources and use to fill in 60mm layers, compact to 95% Mod. AASHTO max density:"]
[]
[null,"Base"]
[]
[null,"Construct base with material from commercial source compacted to 95% Mod MAASHTO"]
[]
[null,"60mm cut through the road (G4)","m3",1.7279999999999998,null,{"$f":"D211*E211","v":0}]
[]
[null,"Aggregated Surface"]
[]
[null,"32mm gravel filling on top of sub-base","m2",28.799999999999997,null,{"$f":"D215*E215","v":0}]
[]
[null,"Compaction of surfaces:"]
[]
[null,"Compaction of existing ground surface under floors, paving, etc and compacting to 90% Mod AASHTO density","m2",2749.5,null,{"$f":"D219*E219","v":0}]
[null,"Compaction of existing ground surface under floors, paving, etc for a depth of 100mm, breaking  down oversize material, adding suitable material where necessary and compacting to 90% Mod AASHTO density","m2",4877.5,null,0]
[null,"Compaction of existing ground surface under floors, paving, etc for a depth of 260mm, breaking  down oversize material, adding suitable material where necessary and compacting to 90% Mod AASHTO density","m2",{"v":83.16437671639663,"d":"83.16"},null,0]
[null,"Compaction of existing ground surface under floors, paving, etc for a depth of 150mm, breaking  down oversize material, adding suitable material where necessary and compacting to 93% Mod AASHTO density","m2",477.5,null,0]
[null,"Compaction of existing ground surface under floors, paving, etc for a depth of 150mm, breaking  down oversize material, adding suitable material where necessary and compacting to 95% Mod AASHTO density","m2",990.09,null,0]
[null,"Compaction of existing ground surface under floors, paving, etc for a depth of 60mm, breaking  down oversize material, adding suitable material where necessary and compacting to 95% Mod AASHTO density","m2",1069.2,null,0]
[]
[null,"Prescribed density tests on filling:"]
[]
[null,"Modified AASHTO Density test","No",100,null,{"$f":"D228*E228","v":0}]
[]
[null,"Carried to Final Summary",{"$nulls":3},{"$f":"SUM(F134:F229)","v":0}]
[]
[null,"BUILDERS WORK"]
[null,"BILL NO 3: EARTHWORKS (PROVISIONAL)"]
[]
["ITEM NO","DESCRIPTION","UNIT","QTY","RATE","AMOUNT"]
[]
[null,"BILL NO 4"]
[null,"CONCRETE, FORMWORK AND REINFORCEMENT "]
[]
[null,"Cost of tests"]
[null,"The costs of making, storing and testing of concrete test cubes as required under 7 \"Tests\" of SABS 1200G shall include the cost of providing cube moulds necessary for the purpose, for testing costs and for submitting reports on the tests to the Engineer. The testing shall be undertaken by an independent firm or institution nominated by the contractor to the approval of the Engineer"]
[]
[null,"CONCRETE WORK"]
[]
[null,"UNREINFORCED CONCRETE CAST AGAINST EXCAVATED SURFACES"]
[]
[null,"50MPa/19mm concrete:"]
[]
[null,"Blinding","m3",1,null,{"$f":"D249*E249","v":0}]
[]
[null,"35MPa/19mm concrete:"]
[]
[null,"Road crossing","m3",{"v":1.2679469155662542,"d":"1.27"},null,{"$f":"D253*E253","v":0}]
[]
[null,"25MPa/19mm concrete:"]
[]
[null,"Bases for Concrete poles","m3",{"v":21.599999999999998,"d":"21.60"},null,{"$f":"D257*E257","v":0}]
[]
[null,"20MPa/19mm concrete:"]
[]
[null,"Holes, etc","m3",{"v":88.18800000000002,"d":"88.19"},null,{"$f":"D261*E261","v":0}]
[]
[null,"Anti-tunnelling T-Beam","m3",47.75,null,{"$f":"D263*E263","v":0}]
[]
[null,"15MPa/19mm concrete:"]
[]
[null,"Bases for Galvanised poles","m3",{"v":2.2,"d":"2.20"},null,{"$f":"D267*E267","v":0}]
[]
[null,"ROUGH FORMWORK (DEGREE OF ACCURACY III)"]
[]
[null,"Rough formwork to sides:"]
[]
[null,"Anti-tunnelling T-Beam","m2",448.85,null,{"$f":"D273*E273","v":0}]
[]
[null,"25mm x 25mm Chamfer to Stub Columns","m",{"v":79.2,"d":"79.20"},null,{"$f":"D275*E275","v":0}]
[]
[]
[null,"TEST BLOCK"]
[]
[null,"Making and testing 150 x 150 x 150mm concrete strength test cube (3 sets/test) and submit report to the  Engineer/Employer (only successful tests will be paid for)","Sets",50,null,{"$f":"D280*E280","v":0}]
[]
[null,"CONCRETE SUNDRIES"]
[]
[null,"30MPa no-shrink grout:"]
[]
[null,"Bedding approximately 50mm thick under 240mm x 240mm base plate","No",44,null,{"$f":"D286*E286","v":0}]
[]
[]
[null,"REINFORCED CONCRETE CAST AGAINST EXCAVATED SURFACES"]
[]
[null,"35MPa/19mm concrete:"]
[]
[null,"Bases for Concrete poles and Gates Bases","m3",{"v":3.505980449450105,"d":"3.51"},null,{"$f":"D293*E293","v":0}]
[]
[null,"ROUGH FORMWORK (DEGREE OF ACCURACY III)"]
[]
[null,"Rough formwork to sides:"]
[]
[null,"Manhole bases and top cover","m2",{"v":26.4,"d":"26.40"},null,{"$f":"D299*E299","v":0}]
[]
[null,"REINFORCEMENT"]
[]
[null,"High tensile steel reinforcement to structural concrete work:"]
[]
[null,"395 Mesh panel (size: 6.00m x 2.40m x 8mm) to Manhole bases","No",{"v":3,"d":"3.00"},null,{"$f":"D305*E305","v":0}]
[]
[null,"High tensile steel reinforcement to structural concrete work:"]
[]
[null,"High tensile steel bar reinforcement (Y16)","t",{"v":0.83424,"d":"0.8342"},null,{"$f":"D309*E309","v":0}]
[]
[null,"High tensile steel bar reinforcement (Y12)","t",{"v":1.2190463999999999,"d":"1.2190"},null,{"$f":"D311*E311","v":0}]
[]
[null,"Mild steel bar reinforcement (R10)","t",{"v":0.285054,"d":"0.2851"},null,{"$f":"D313*E313","v":0}]
[]
[null,"Carried to Summary",{"$nulls":3},{"$f":"SUM(F248:F314)","v":0}]
[]
[null,"BUILDERS WORK"]
[null,"BILL NO 4: CONCRETE, FORMWORK AND REINFORCEMENT (PROVISIONAL)"]
[]
["ITEM NO","DESCRIPTION","UNIT","QTY","RATE","AMOUNT"]
[]
[null,"BILL NO 5"]
[null,"STRUCTURAL STEEL"]
[]
[null,"Design and construct approximately 20m (width) x 3m (depth) bridge/culvert crossings with all fixations at all stormwater drainage interfce points. All steel members shall be galvanised","No",3,null,{"$f":"D325*E325","v":0}]
[]
[null,"Construct and install approximately 22m (length) guardrail system with all fixation along all stormwater crossings along the fence line. Guardrail to comply with the requirements of SANS 1350","m",288,null,{"$f":"D327*E327","v":0}]
[]
[null,"Carried to Summary",{"$nulls":3},{"$f":"SUM(F324:F328)","v":0}]
[]
[null,"BUILDERS WORK"]
[null,"BILL NO 5: STRUCTURAL STEEL (PROVISIONAL)"]
[]
["ITEM NO","DESCRIPTION","UNIT","QTY","RATE","AMOUNT"]
[]
[null,"BILL NO 6"]
[null,"METALWORK"]
[]
[null,"FENCING"]
[]
[null,"SUPPLY, DELIVER and INSTALL: Single Tier Electric Fence which should be freestanding and erected at a minimum of 5m away from the mechanical fence. 3000mm high above ground level fixed to 100mm x 100mm x 3mm Square tubing 3000mm long (strain post) . Strain post will have 2x 3000m long struts one in each direction manufactured from 50mm x 50mm x 2mm Square tubing. Anti-climb system comprising of spike rails bolted along the fence top, coupled with ripper coil to be installed. All material to be galvanised coated. Strain posts to be planted in 20MPa concrete 500mm x 600mm deep all round the perimeter and struts to be planted in 20MPa concrete 500mm x 300mm deep all around the perimeter. Warning signs shall be displayed conspicuously along the length of the electric fence, fence posts and all access points. The minimum sign dimensions shall be 200mm x 100mm and the lettering and symbols shall be in accordance with SANS 60335-2-76","m",955,null,{"$f":"D341*E341","v":0}]
[]
[null,"Supply of 3.0m high Strain posts ","No",274,null,{"$f":"D343*E343","v":0}]
[]
[null,"Supply of 3.0m long Struts posts ","No",47,null,{"$f":"D345*E345","v":0}]
[]
[null,"SUPPLY, DELIVER and INSTALL: Double Tier Mechanical Fence, 3000mm high above ground level fixed to 40mm x 40mm x 3mm Hot rolled steel angles 3000mm long (Intermediate post). Intermediate post will have 2x 3000m long struts one in each direction manufactured from 40mm x 40mm x 3mm Angles. Anti-climb system comprising of spike rails bolted along the fence top, coupled with ripper coil to be installed. All material to be galvanised coated. Strain posts to be planted in 20MPa concrete 300mm x 300mm deep all round the perimeter. Warning signs shall be displayed conspicuously along the length of the electric fence, fence posts and all access points. The minimum sign dimensions shall be 200mm x 100mm and the lettering and symbols shall be in accordance with SANS 60335-2-76","m",1910,null,{"$f":"D347*E347","v":0}]
[]
[null,"Supply of 3.0m Angles","No",319,null,{"$f":"D349*E349","v":0}]
[]
[null,"Supply of 3.0m long Struts angles","No",28,null,{"$f":"D351*E351","v":0}]
[]
[null,"10m Overall Length of Lockable Double leaf gates, frames to have rectangular hollow sections and joints shall be contnuously welded. The overall height of the gates when fixed shall not be less than the adjacent fencing height. Each gate leaf to have roller wheels and the gate to be fitted with a sliding horizontal locking bar that is secured to a locking plate welded","No",3,null,{"$f":"D353*E353","v":0}]
[]
[null,"Supply and install Double Leaf Swing gates where each leaf is approximately 2.15m wide x 3.73m high, incluing posts, barbed wire and need accessories and shall be hot dip galvanised.","No",6,null,{"$f":"D355*E355","v":0}]
[]
[null,"Carried to Summary",{"$nulls":3},{"$f":"SUM(F340:F356)","v":0}]
[]
[null,"BUILDERS WORK"]
[null,"BILL NO 6: METALWORK (PROVISIONAL)"]
[]
["ITEM NO","DESCRIPTION","UNIT","QTY","RATE","AMOUNT"]
[]
[null,"BILL NO 7"]
[null,"MANHOLES & COVERS, SLEEVES, CONCRETE POLES, etc"]
[]
[null,"Concrete poles"]
[]
[null,"7.5m/130 Diameter tip / 2.5kN Spun Concrete Pole. Poles shall be earthed for protection against lightning and should be earthed via 50 x 3mm earth tails or similar","No",15,null,{"$f":"D369*E369","v":0}]
[]
[null,"Concrete manhole rings"]
[]
[null,"750 x 0.25 Ring manhole","No",15,null,{"$f":"D373*E373","v":0}]
[]
[null,"750 x 0.50 Ring manhole","No",15,null,{"$f":"D375*E375","v":0}]
[]
[null,"Kabelflex HDPE pipe"]
[]
[null,"DN110 (50m roll) with couplings (Remeasurable)","Roll",82,null,{"$f":"D379*E379","v":0}]
[]
[null,"110mm Underground PVC Plain 45 Degree Bend","No",15,null,{"$f":"D381*E381","v":0}]
[]
[null,"50mm PVC Plain 45 Degree Bend cast in concrete approximately 800mm long","No",88,null,{"$f":"D383*E383","v":0}]
[]
[null,"Gloc Lockable Manhole Cover and Frame (SANS 50124 EN124 Class C250) in cover slab"]
[]
[null,"Manhole cover + frame with locking key","No",15,null,{"$f":"D387*E387","v":0}]
[]
[null,"Carried to Summary",{"$nulls":3},{"$f":"SUM(F368:F388)","v":0}]
[]
[null,"BUILDERS WORK"]
[null,"BILL NO 7: EXTERNAL WORKS, MANHOLES, ROADS, SLEEVES, etc (PROVISIONAL)"]
[]
["ITEM NO","DESCRIPTION","UNIT","QTY","RATE","AMOUNT"]
[]
[null,"BILL NO 8"]
[null,"THERMAL IMAGING SYSTEM (CCTV)"]
[]
[null,"Supply PTZ Thermal Camera","No",4,null,{"$f":"D399*E399","v":0}]
[]
[null,"Supply Thermal Network Camera (Fixed Thermal)","No",8,null,{"$f":"D401*E401","v":0}]
[]
[null,"Supply Fixed IR Camera","No",2,null,{"$f":"D403*E403","v":0}]
[]
[null,"Supply CCTV NVMS Platform. Basic 1U server and 512 Camera Licenses (No failover platform)","No",15,null,{"$f":"D405*E405","v":0}]
[]
[null,"Supply BASIC MANAGEMENT SERVER (No failover platform and No Integration platform). Dual power, RAID 1, Intel Xeon E-2336 2.9GHz, 16GB UDIMM, 3200MT/s, ECC, 2x 300GB 10K RPM SAS 12GBPS 512N 2.5IN HOT- PLUG HARD, 1x 2.4TB 10K RPM SAS 12GBPS 512E 2.5IN HOT-PLUG HARD2.4TB 10K RPM SAS 12GBPS 512E 2.5IN HOT-PLUG HARD Microsoft_WS_Standard_2019_16 cores_2VMs. 3Y Basic Onsite To 3Y ProSupport","No",1,null,{"$f":"D407*E407","v":0}]
[]
[null,"Supply Dedicated Video data Storage Solution. 3U Bays, RAID 5 Configuration with Parity rebuild and Spare drives. Total 128TB (Usable 112TB on RAID 5). 30 Day storage @ nominal frame and quality standards, based on 70% daily motion principles of detection per 24 hours","No",1,null,{"$f":"D409*E409","v":0}]
[]
[null,"Supply 42U CABINET. 1Meter deep, Including blanking plates, cable entry and management","No",1,null,{"$f":"D411*E411","v":0}]
[]
[null,"Supply Clearline Surge Protected 6way Power distribution units","No",2,null,{"$f":"D413*E413","v":0}]
[]
[null,"Supply Hisense “46” HD Digital Signage Panel.  Narrow Bezel. 24/7 operation","No",2,null,{"$f":"D415*E415","v":0}]
[]
[null,"Supply Video Wall Brackets (specific for video walls) and cabling","No",2,null,{"$f":"D417*E417","v":0}]
[]
[null,"Supply Video Wall HDMI decoders. H264/H265 / 4K/1080P","No",1,null,{"$f":"D419*E419","v":0}]
[]
[null,"Supply Processor: Intel Core i7-12700 (25M Cache, up to 4.9 GHz) Memory: 16GB (2x8GB) 4400MHz DDR5 4 DIMM slots (dual channel) Up to 128GB or up to 3200MHz Non-ECC & ECC DDR4 Memory Hard Drive: M.2 2280 512GB NVM gen4 Class 40 Optical Drive: 8x DVD ROM Graphics: GeForce RTX 3070 Ti 8GB GDDR6X DX12 Graphics Card. Keyboard: KB216 Multimedia USB Keyboard Mouse: Optical Mouse Operating System: Windows 11 Professional (64Bit) + DELL MONITOR P2722H 27 INCH","No",2,null,{"$f":"D421*E421","v":0}]
[]
[null,"Supply PTZ CAMERA Keyboard","No",2,null,{"$f":"D423*E423","v":0}]
[]
[null,"Supply Ergonomic designed Control room furniture. 2 to 3 operator desk, cable management  and seating","Sum",1,null,{"$f":"D425*E425","v":0}]
[]
[null,"Supply and  Installation surface cable hardware. Inclusice of Bosal steel conduits, clamps, PVC trunking, power skirting etc)","Sum",1,null,{"$f":"D427*E427","v":0}]
[]
[null,"Supply RM-300X D00 - Remote Microphone for VX-3000 Series","No",1,null,{"$f":"D429*E429","v":0}]
[]
[null,"Supply IP Horn Maximum sound pressure level is 124dB at 15W powered with POE+","No",15,null,{"$f":"D431*E431","v":0}]
[]
[null,"Supply and install and splice 6 core Single mode fiber cable","m",1000,null,{"$f":"D433*E433","v":0}]
[]
[null,"Supply and install 5.6m Galvanised steel stepped pole with access opening cover plate to have 250mm  x 250mm base plate","No",44,null,{"$f":"D435*E435","v":0}]
[]
[null,"Supply and install 50 x 3 Flat Copper fastened to H.D Bolts with 2 Nuts and 2 Washers (450mm width)","No",12,null,{"$f":"D437*E437","v":0}]
[]
[null,"Supply and install 4 x M20 Rods approximately 700mm long, 16 x M20 Nuts and 12 x  Washers per stub column to receive galvanised pole","No",44,null,{"$f":"D439*E439","v":0}]
[]
[null,"Supply Fiber patch panels","No",15,null,{"$f":"D441*E441","v":0}]
[]
[null,"Supply and install 465 x 145mm Inspection Boxes (Junction Boxes) mounted on concrete poles","No",15,null,{"$f":"D443*E443","v":0}]
[]
[null,"Networking Hardware Per Pole and Head end equipment (Field Hardened PoE switches, media converters, SFP modules, rack/s)","No",15,null,{"$f":"D445*E445","v":0}]
[]
[null,"Supply and install Power Reticulation with CoC for poles and head end equipment (power cabling, power points, surge protection, Power cable installation and termination certification)","No",15,null,{"$f":"D447*E447","v":0}]
[]
[null,"Supply and install Network CAT6e Cabling, termination per pole and head end equipment","No",15,null,{"$f":"D449*E449","v":0}]
[]
[null,"3-Phase 400V 100A IP65 DB Box","No",4,null,{"$f":"D451*E451","v":0}]
[]
[null,"DB Support Brackets","No",4,null,{"$f":"D453*E453","v":0}]
[]
[null,"60W LED High performance Luminaire including fixation","No",44,null,{"$f":"D455*E455","v":0}]
[]
[null,"4mm2/4C/PCV/SWA/PVC Power supply cables","m",1200,null,{"$f":"D457*E457","v":0}]
[]
[null,"16mm2/4C/PCV/SWA/PVC Power supply cables","m",1200,null,{"$f":"D459*E459","v":0}]
[]
[null,"Cable termination","Sum",1,null,{"$f":"D461*E461","v":0}]
[]
[null,"Commissioning, Testing, Integration and handover of the whole system with As Built drawings and Manuals","Days",5,null,{"$f":"D463*E463","v":0}]
[]
[null,"Conduit Mandrel Test"]
[]
[null,"The contractor to conduct a mandrel test on the conduit pipes after installation is complete","Days",3,null,{"$f":"D467*E467","v":0}]
[]
[null,"Plant labelling"]
[]
[null,"Anodised Aluminium tags - Label Type GA","No",103,null,{"$f":"D471*E471","v":0}]
[]
[null,"Carried to Summary",{"$nulls":3},{"$f":"SUM(F398:F472)","v":0}]
[]
[null,"BUILDERS WORK"]
[null,"BILL NO 8: THERMAL IMAGING SYSTEM (CCTV) (PROVISIONAL)"]
[]
[]
[null,"SUMMARY"]
[]
["BILL 1","PRELIMINARIES & GENERAL",{"$nulls":3},{"$f":"F83","v":0}]
[]
["BILL 2","ALTERATIONS",{"$nulls":3},{"$f":"F117","v":0}]
[]
["BILL 3","EARTHWORKS",{"$nulls":3},{"$f":"F230","v":0}]
[]
["BILL 4","CONCRETE, FORMWORK AND REINFORCEMENT ",{"$nulls":3},{"$f":"F315","v":0}]
[]
["BILL 5","STRUCTURAL STEEL",{"$nulls":3},{"$f":"F329","v":0}]
[]
["BILL 6","METALWORK",{"$nulls":3},{"$f":"F357","v":0}]
[]
["BILL 7","EXTERNAL WORKS, MANHOLES, ROADS, SLEEVES, etc",{"$nulls":3},{"$f":"F389","v":0}]
[]
["BILL 8","THERMAL IMAGING SYSTEM (CCTV)",{"$nulls":3},{"$f":"F473","v":0}]
[]
[null,"SUB-TOTAL AMOUNT (EXCL VAT)",{"$nulls":3},{"$f":"SUM(F478:F496)","v":0}]
[]
[null,"ADD: 0.25% for Contract Skills Development Goal (As per CIDB)",null,{"v":0.0025,"d":"0.25%"},null,{"$f":"F497*D499","v":0}]
[]
[null,"TOTAL AMOUNT (EXCL VAT)",{"$nulls":3},{"$f":"SUM(F497:F500)","v":0}]

{"sheet":"BoQ of Fencing (2027)","index":2,"n_rows":501,"n_cols":6,"rows_kept":501,"hidden":true}
[]
["ITEM NO","DESCRIPTION","UNIT","QTY","RATE","AMOUNT"]
[]
[null,"BILL NO 1"]
[null,"PRELIMINARIES AND GENERAL"]
[]
[null,"FIXED COSTS"]
[null,"Site Establishment for: Delivery of Office Converted Containers","Once Off",2]
[null,"Site Establishment for: Delivery of 9m Open Plan Container (Dining Area)","Once Off",1]
[null,"Site Establishment for: Delivery of Kitchen Converted Container","Once Off",1]
[null,"Site Establishment for: Delivery of Steel Storage Container","Once Off",1]
[null,"Site De-Establishment for: Collection of Office Converted Containers","Once Off",2]
[null,"Site De-Establishment for: Collection of 9m Open Plan Container","Once Off",1]
[null,"Site De-Establishment for: Collection of Kitchen Converted Container","Once Off",1]
[null,"Site De-Establishment for: Collection of Steel Storage Container","Once Off",1]
[null,"Site Establishment for: Delivery of Hired Plant","Once Off",1]
[null,"Site Establishment for: Collection of Hired Plant","Once Off",1]
[null,"Medicals - Entry","Once Off",48]
[null,"Medicals - Exit","Once Off",48]
[null,"Standard PPE","Once Off",48]
[null,"Safety File","Once Off",1]
[null,"Police Clearance Certification","No",48]
[null,"Delivery and Collection of Portable Flushable Toilets","Once Off",4]
[]
[null,"TIME RELATED COSTS"]
[null,"Light Driven Vehicle (2 x 4)","Per Month  ",8]
[null,"Home-Work-Home (22 Seater Bus) (2No Off)","Per Month  ",16]
[null,"3 x 6m Office Converted Containers (2No Off)","Per Month  ",16]
[null,"3 x 9m Open Plan Container","Per Month  ",8]
[null,"3 x 6m Kitchen Converted Container L-6m","Per Month  ",8]
[null,"3.4 x 6m Steel Storage Container L-6m","Per Month  ",8]
[null,"Portable Flushable Toilets with handwash basin (To be serviced once a week) (2No Off)","Per Month  ",16]
[]
[null,"Sub-Total for P&Gs:"]
[null,"Hired Plant Usage:"]
[null,"TLB","Days",84]
[null,"Water tank","Days",84]
[null,"Cherry Picker","Days",84]
[null,"12m3 Tipper Truck","Days",84]
[null,"Rammer","Days",84]
[null,"Crane Truck","Days",84]
[null,"Front End Loader","Days",84]
[null,"Excavator (to include Pecker and Moil, when needed)","Days",42]
[null,"Generator ","Days",63]
[null,"Grader","Days",42]
[null,"10 Ton Roller Compactor","Days",42]
[null,"Plate Compactor","Days",42]
[]
[null,"Sub-Total for Hired Plant Usage:"]
[]
[null,"RESOURCES"]
[]
[null,"Design Crew"]
[null,"Electrical Engineer or Technologist [Professionally Registered with ECSA and Minimum of 5 Years Exp]","Hours",1301]
[null,"Civil Engineer or Technologist [Professionally Registered with ECSA and Minimum of 5 Years Exp]","Hours",1301]
[null,"ICT Specialist [5-10 Years Exp]","Hours",1301]
[null,"Draughtsman [Minimum 5 Years Exp]","Hours",1301]
[null,"Structural Engineer or Technologist [Professionally Registered with ECSA and Minimum of 5 Years Exp]","Hours",1301]
[null,"Geotechnical Engineer or Technologist [Professionally Registered with ECSA and Minimum of 5 Years Exp]","Hours",1301]
[null,"Control and Instrumentation Engineer or Technologist [Professionally Registered with ECSA and Minimum of 5 Years Exp]","Hours",1301]
[]
[null,"Site Crew"]
[null,"Project Manager [Professionally Registered with SACPCMP and Minimum of 5 Years Exp]","Hours",1301]
[null,"Site Civil Supervisor [5-10 Year Exp]","Hours",1301]
[null,"Site Electrical Supervisor [5-10 Years Exp]","Hours",1301]
[null,"Environmental Officer [1-5 Years Exp]","Hours",1301]
[null,"Safety Officer [1-5 Years Exp]","Hours",1301]
[null,"Quality Officer [1-5 Years Exp]","Hours",1301]
[null,"Land Surveyor [Professionally Registered with SAGC and Minimum of 3 Years Exp]","Hours",{"v":1301.3333333333333,"d":"1301"}]
[null,"Civil Technician [1-5 Years Exp]","Hours",1301]
[null,"General Worker [12No Off]","Hours",15616]
[null,"Semi-skilled Labour [12No Off]","Hours",15616]
[null,"Plant Operator","Hours",1301]
[null,"Concrete hand","Hours",1301]
[null,"IT Engineer","Hours",651]
[null,"Electrician","Hours",651]
[null,"Senior Technician","Hours",1301]
[null,"Assistant Technician","Hours",1301]
[null,"Document Controller [Minimum 3 Years Exp]","Hours",1301]
[]
[null,"Sub-Total for Design and Site Resources:"]
[]
[null,"Carried to Summary"]
[null,"BUILDERS WORK"]
[null,"BILL NO 1: PRELIMINARIES AND GENERAL (PROVISIONAL)"]
[]
["ITEM NO","DESCRIPTION","UNIT","QTY","RATE","AMOUNT"]
[]
[null,"BILL NO 2"]
[null,"ALTERATIONS"]
[]
[null,"SUPPLEMENTARY PREAMBLES"]
[null,"View site:"]
[]
[null,"Before submitting their tender the contractor shall visit the site and satisfy themselves as to the nature and extent of the work to be done and the value of the materials contained in the buildings or portions of the buildings to be demolished. No claim for any variations of the contract sum in respect of the nature and extent of the work or of inferior or damaged materials will be entertained"]
[]
[null,"Old materials to become property of the Contractor:"]
[]
[null,"Old materials from alterations, except where desrcibed as to be re-used or handed over, become the property of the Employer"]
[]
[null,"REMOVAL OF EXISTING WORK:"]
[]
[null,"Carefully take down and removing existing gates, fence, etc. including cutting joints:"]
[]
[null,"Diamond razor mesh fencing approximately 1800mm high including poles embedded in concrete ","m",955]
[]
[null,"1200 x 1800mm high Mild steel pedestrian gate including all necessary accessories","No",3]
[]
[null,"3500mm wide gate","No",1]
[]
[null,"REMOVAL OF RUBBISH, DISUSED MATERIALS, ETC"]
[]
[null,"Removal of rubbish, disused materials, etc"]
[]
[null,"Remove from site all rubbish, disused or unwanted materials around the perimeter fence of the building and cart away to an area to be directed by the Site/Project Manager","Item",1]
[]
[null,"Carried to Summary"]
[]
[null,"BUILDERS WORK"]
[null,"BILL NO 2: ALTERATIONS (PROVISIONAL)"]
[]
["ITEM NO","DESCRIPTION","UNIT","QTY","RATE","AMOUNT"]
[]
[null,"BILL NO 3"]
[null,"EARTHWORKS"]
[]
[null,"SUPPLEMENTARY PREAMBLES"]
[null,"Nature of ground:"]
[]
[null,"The nature of the ground is assumed to be gravel, therefore \"earth\", but possibly interspersed with \"soft rock\" or \"hard rock\""]
[null,"Should the Contractor encounter any \"soft\" or \"hard\" rock in the excavations, he shall immediately notfiy the Engineer who shall be the sole arbiter as to what constitutes \"soft\" or \"hard\" rock for final account purposes"]
[]
[null,"Scanning:"]
[]
[null,"Scanning of underground services and utilities shall precede all excavation works","Days",3]
[]
[null,"Site Clearance:"]
[]
[null,"Allow for clearing the area of the site to be built upon of grass, weeds, shrubs, debris, etc, including grubbing up all roots, scoffling up as required and cart away all vegetation and debris","m2",955]
[]
[null,"Strip average 150mm thick layer of topsoil and recompact (measures elsewhere)","m3",{"v":688.5,"d":"688.50"}]
[]
[null,"EXCAVATIONS, FILLING, ETC OTHER THAN BULK:"]
[]
[null,"Excavation in earth not exceeding 2m deep:"]
[]
[null,"Trenches (Anti-Tunneling and Cable Sleeves)","m3",{"v":453.625,"d":"453.63"}]
[]
[null,"Holes","m3",{"v":155.728,"d":"155.73"}]
[]
[null,"Road Crossing","m3",25.919999999999998]
[]
[null,"Extra over trench and hole excavations in earth for excavation in:"]
[]
[null,"Soft rock","m3",{"v":63.527300000000004,"d":"63.53"}]
[]
[null,"Hard rock","m3",{"v":63.527300000000004,"d":"63.53"}]
[]
[null,"Extra over all excavations for carting away"]
[]
[null,"Surplus material from excavations and/or stock piles on site to a dumping site to be located by the employer","m3",{"v":635.273,"d":"635.27"}]
[]
[null,"Keeping excavations free of water"]
[]
[null,"Keeping excavations free of all water other than subtrranean water","Item",1]
[]
[null,"EARTH FILLING, ETC."]
[]
[null,"Import G5 material from commercial sources and use to fill, compact to 93% Mod. AASHTO max density:"]
[]
[null,"2% Slope from the edge of the building apron slab","m3",{"v":780.3000000000001,"d":"780.30"}]
[]
[null,"Compaction of surfaces:"]
[]
[null,"Compaction of existing ground surface under floors, paving, etc including scarifying for a depth of 150mm, breaking  down oversize material, adding suitable material where necessary and compacting to 95% Mod AASHTO density","m2",4590]
[]
[null,"Earth filling obtained from the excavations and/or prescribed stock piles on site, compacted to 90% Mod AASHTO max density"]
[]
[null,"Backfilling to trenches, holes, etc","m3",{"v":196.08337671639663,"d":"196.08"}]
[]
[null,"Import G10 material from commercial sources and use to fill in 150mm layers, compact to 95% Mod. AASHTO max density:"]
[]
[null,"Patrol Access road","m3",330]
[]
[null,"Import G5 material from commercial sources and use to fill in 150mm layers, compact to 95% Mod. AASHTO max density:"]
[]
[null,"Backfilling to trenches, holes, etc","m3",162.35]
[]
[null,"Import G5 material from commercial sources and use to fill in 60mm layers, compact to 95% Mod. AASHTO max density:"]
[]
[null,"Sub-base"]
[]
[null,"Construct sub-base with material from commercial source compacted to 95% Mod MAASHTO"]
[]
[null,"60mm cut through the road (G5)","m3",1.7279999999999998]
[]
[null,"Import G5 material from commercial sources and use to fill in 150mm layers, compact to 90% Mod. AASHTO max density:"]
[]
[null,"Sub-base"]
[]
[null,"Construct sub-base with material from commercial source compacted to 90% Mod MAASHTO"]
[]
[null,"Aggregated surface on top of sub-base (Patrol Access road)","m2",365.09000000000003]
[]
[null,"Import G4 material from commercial sources and use to fill in 60mm layers, compact to 95% Mod. AASHTO max density:"]
[]
[null,"Base"]
[]
[null,"Construct base with material from commercial source compacted to 95% Mod MAASHTO"]
[]
[null,"60mm cut through the road (G4)","m3",1.7279999999999998]
[]
[null,"Aggregated Surface"]
[]
[null,"32mm gravel filling on top of sub-base","m2",28.799999999999997]
[]
[null,"Compaction of surfaces:"]
[]
[null,"Compaction of existing ground surface under floors, paving, etc and compacting to 90% Mod AASHTO density","m2",2749.5]
[null,"Compaction of existing ground surface under floors, paving, etc for a depth of 100mm, breaking  down oversize material, adding suitable material where necessary and compacting to 90% Mod AASHTO density","m2",4877.5]
[null,"Compaction of existing ground surface under floors, paving, etc for a depth of 260mm, breaking  down oversize material, adding suitable material where necessary and compacting to 90% Mod AASHTO density","m2",{"v":83.16437671639663,"d":"83.16"}]
[null,"Compaction of existing ground surface under floors, paving, etc for a depth of 150mm, breaking  down oversize material, adding suitable material where necessary and compacting to 93% Mod AASHTO density","m2",477.5]
[null,"Compaction of existing ground surface under floors, paving, etc for a depth of 150mm, breaking  down oversize material, adding suitable material where necessary and compacting to 95% Mod AASHTO density","m2",990.09]
[null,"Compaction of existing ground surface under floors, paving, etc for a depth of 60mm, breaking  down oversize material, adding suitable material where necessary and compacting to 95% Mod AASHTO density","m2",1069.2]
[]
[null,"Prescribed density tests on filling:"]
[]
[null,"Modified AASHTO Density test","No",100]
[]
[null,"Carried to Final Summary"]
[]
[null,"BUILDERS WORK"]
[null,"BILL NO 3: EARTHWORKS (PROVISIONAL)"]
[]
["ITEM NO","DESCRIPTION","UNIT","QTY","RATE","AMOUNT"]
[]
[null,"BILL NO 4"]
[null,"CONCRETE, FORMWORK AND REINFORCEMENT "]
[]
[null,"Cost of tests"]
[null,"The costs of making, storing and testing of concrete test cubes as required under 7 \"Tests\" of SABS 1200G shall include the cost of providing cube moulds necessary for the purpose, for testing costs and for submitting reports on the tests to the Engineer. The testing shall be undertaken by an independent firm or institution nominated by the contractor to the approval of the Engineer"]
[]
[null,"CONCRETE WORK"]
[]
[null,"UNREINFORCED CONCRETE CAST AGAINST EXCAVATED SURFACES"]
[]
[null,"50MPa/19mm concrete:"]
[]
[null,"Blinding","m3",1]
[]
[null,"35MPa/19mm concrete:"]
[]
[null,"Road crossing","m3",{"v":1.2679469155662542,"d":"1.27"}]
[]
[null,"25MPa/19mm concrete:"]
[]
[null,"Bases for Concrete poles","m3",{"v":21.599999999999998,"d":"21.60"}]
[]
[null,"20MPa/19mm concrete:"]
[]
[null,"Holes, etc","m3",{"v":88.18800000000002,"d":"88.19"}]
[]
[null,"Anti-tunnelling T-Beam","m3",47.75]
[]
[null,"15MPa/19mm concrete:"]
[]
[null,"Bases for Galvanised poles","m3",{"v":2.2,"d":"2.20"}]
[]
[null,"ROUGH FORMWORK (DEGREE OF ACCURACY III)"]
[]
[null,"Rough formwork to sides:"]
[]
[null,"Anti-tunnelling T-Beam","m2",448.85]
[]
[null,"25mm x 25mm Chamfer to Stub Columns","m",{"v":79.2,"d":"79.20"}]
[]
[]
[null,"TEST BLOCK"]
[]
[null,"Making and testing 150 x 150 x 150mm concrete strength test cube (3 sets/test) and submit report to the  Engineer/Employer (only successful tests will be paid for)","Sets",50]
[]
[null,"CONCRETE SUNDRIES"]
[]
[null,"30MPa no-shrink grout:"]
[]
[null,"Bedding approximately 50mm thick under 240mm x 240mm base plate","No",44]
[]
[]
[null,"REINFORCED CONCRETE CAST AGAINST EXCAVATED SURFACES"]
[]
[null,"35MPa/19mm concrete:"]
[]
[null,"Bases for Concrete poles and Gates Bases","m3",{"v":3.505980449450105,"d":"3.51"}]
[]
[null,"ROUGH FORMWORK (DEGREE OF ACCURACY III)"]
[]
[null,"Rough formwork to sides:"]
[]
[null,"Manhole bases and top cover","m2",{"v":26.4,"d":"26.40"}]
[]
[null,"REINFORCEMENT"]
[]
[null,"High tensile steel reinforcement to structural concrete work:"]
[]
[null,"395 Mesh panel (size: 6.00m x 2.40m x 8mm) to Manhole bases","No",{"v":3,"d":"3.00"}]
[]
[null,"High tensile steel reinforcement to structural concrete work:"]
[]
[null,"High tensile steel bar reinforcement (Y16)","t",{"v":0.83424,"d":"0.8342"}]
[]
[null,"High tensile steel bar reinforcement (Y12)","t",{"v":1.2190463999999999,"d":"1.2190"}]
[]
[null,"Mild steel bar reinforcement (R10)","t",{"v":0.285054,"d":"0.2851"}]
[]
[null,"Carried to Summary"]
[]
[null,"BUILDERS WORK"]
[null,"BILL NO 4: CONCRETE, FORMWORK AND REINFORCEMENT (PROVISIONAL)"]
[]
["ITEM NO","DESCRIPTION","UNIT","QTY","RATE","AMOUNT"]
[]
[null,"BILL NO 5"]
[null,"STRUCTURAL STEEL"]
[]
[null,"Design and construct approximately 20m (width) x 3m (depth) bridge/culvert crossings with all fixations at all stormwater drainage interfce points. All steel members shall be galvanised","No",3]
[]
[null,"Construct and install approximately 22m (length) guardrail system with all fixation along all stormwater crossings along the fence line. Guardrail to comply with the requirements of SANS 1350","m",288]
[]
[null,"Carried to Summary"]
[]
[null,"BUILDERS WORK"]
[null,"BILL NO 5: STRUCTURAL STEEL (PROVISIONAL)"]
[]
["ITEM NO","DESCRIPTION","UNIT","QTY","RATE","AMOUNT"]
[]
[null,"BILL NO 6"]
[null,"METALWORK"]
[]
[null,"FENCING"]
[]
[null,"SUPPLY, DELIVER and INSTALL: Single Tier Electric Fence which should be freestanding and erected at a minimum of 5m away from the mechanical fence. 3000mm high above ground level fixed to 100mm x 100mm x 3mm Square tubing 3000mm long (strain post) . Strain post will have 2x 3000m long struts one in each direction manufactured from 50mm x 50mm x 2mm Square tubing. Anti-climb system comprising of spike rails bolted along the fence top, coupled with ripper coil to be installed. All material to be galvanised coated. Strain posts to be planted in 20MPa concrete 500mm x 600mm deep all round the perimeter and struts to be planted in 20MPa concrete 500mm x 300mm deep all around the perimeter. Warning signs shall be displayed conspicuously along the length of the electric fence, fence posts and all access points. The minimum sign dimensions shall be 200mm x 100mm and the lettering and symbols shall be in accordance with SANS 60335-2-76","m",955]
[]
[null,"Supply of 3.0m high Strain posts ","No",274]
[]
[null,"Supply of 3.0m long Struts posts ","No",47]
[]
[null,"SUPPLY, DELIVER and INSTALL: Double Tier Mechanical Fence, 3000mm high above ground level fixed to 40mm x 40mm x 3mm Hot rolled steel angles 3000mm long (Intermediate post). Intermediate post will have 2x 3000m long struts one in each direction manufactured from 40mm x 40mm x 3mm Angles. Anti-climb system comprising of spike rails bolted along the fence top, coupled with ripper coil to be installed. All material to be galvanised coated. Strain posts to be planted in 20MPa concrete 300mm x 300mm deep all round the perimeter. Warning signs shall be displayed conspicuously along the length of the electric fence, fence posts and all access points. The minimum sign dimensions shall be 200mm x 100mm and the lettering and symbols shall be in accordance with SANS 60335-2-76","m",1910]
[]
[null,"Supply of 3.0m Angles","No",319]
[]
[null,"Supply of 3.0m long Struts angles","No",28]
[]
[null,"10m Overall Length of Lockable Double leaf gates, frames to have rectangular hollow sections and joints shall be contnuously welded. The overall height of the gates when fixed shall not be less than the adjacent fencing height. Each gate leaf to have roller wheels and the gate to be fitted with a sliding horizontal locking bar that is secured to a locking plate welded","No",3]
[]
[null,"Supply and install Double Leaf Swing gates where each leaf is approximately 2.15m wide x 3.73m high, incluing posts, barbed wire and need accessories and shall be hot dip galvanised.","No",6]
[]
[null,"Carried to Summary"]
[]
[null,"BUILDERS WORK"]
[null,"BILL NO 6: METALWORK (PROVISIONAL)"]
[]
["ITEM NO","DESCRIPTION","UNIT","QTY","RATE","AMOUNT"]
[]
[null,"BILL NO 7"]
[null,"MANHOLES & COVERS, SLEEVES, CONCRETE POLES, etc"]
[]
[null,"Concrete poles"]
[]
[null,"7.5m/130 Diameter tip / 2.5kN Spun Concrete Pole. Poles shall be earthed for protection against lightning and should be earthed via 50 x 3mm earth tails or similar","No",15]
[]
[null,"Concrete manhole rings"]
[]
[null,"750 x 0.25 Ring manhole","No",15]
[]
[null,"750 x 0.50 Ring manhole","No",15]
[]
[null,"Kabelflex HDPE pipe"]
[]
[null,"DN110 (50m roll) with couplings (Remeasurable)","Roll",82]
[]
[null,"110mm Underground PVC Plain 45 Degree Bend","No",15]
[]
[null,"50mm PVC Plain 45 Degree Bend cast in concrete approximately 800mm long","No",88]
[]
[null,"Gloc Lockable Manhole Cover and Frame (SANS 50124 EN124 Class C250) in cover slab"]
[]
[null,"Manhole cover + frame with locking key","No",15]
[]
[null,"Carried to Summary"]
[]
[null,"BUILDERS WORK"]
[null,"BILL NO 7: EXTERNAL WORKS, MANHOLES, ROADS, SLEEVES, etc (PROVISIONAL)"]
[]
["ITEM NO","DESCRIPTION","UNIT","QTY","RATE","AMOUNT"]
[]
[null,"BILL NO 8"]
[null,"THERMAL IMAGING SYSTEM (CCTV)"]
[]
[null,"Supply PTZ Thermal Camera","No",4]
[]
[null,"Supply Thermal Network Camera (Fixed Thermal)","No",8]
[]
[null,"Supply Fixed IR Camera","No",2]
[]
[null,"Supply CCTV NVMS Platform. Basic 1U server and 512 Camera Licenses (No failover platform)","No",15]
[]
[null,"Supply BASIC MANAGEMENT SERVER (No failover platform and No Integration platform). Dual power, RAID 1, Intel Xeon E-2336 2.9GHz, 16GB UDIMM, 3200MT/s, ECC, 2x 300GB 10K RPM SAS 12GBPS 512N 2.5IN HOT- PLUG HARD, 1x 2.4TB 10K RPM SAS 12GBPS 512E 2.5IN HOT-PLUG HARD2.4TB 10K RPM SAS 12GBPS 512E 2.5IN HOT-PLUG HARD Microsoft_WS_Standard_2019_16 cores_2VMs. 3Y Basic Onsite To 3Y ProSupport","No",1]
[]
[null,"Supply Dedicated Video data Storage Solution. 3U Bays, RAID 5 Configuration with Parity rebuild and Spare drives. Total 128TB (Usable 112TB on RAID 5). 30 Day storage @ nominal frame and quality standards, based on 70% daily motion principles of detection per 24 hours","No",1]
[]
[null,"Supply 42U CABINET. 1Meter deep, Including blanking plates, cable entry and management","No",1]
[]
[null,"Supply Clearline Surge Protected 6way Power distribution units","No",2]
[]
[null,"Supply Hisense “46” HD Digital Signage Panel.  Narrow Bezel. 24/7 operation","No",2]
[]
[null,"Supply Video Wall Brackets (specific for video walls) and cabling","No",2]
[]
[null,"Supply Video Wall HDMI decoders. H264/H265 / 4K/1080P","No",1]
[]
[null,"Supply Processor: Intel Core i7-12700 (25M Cache, up to 4.9 GHz) Memory: 16GB (2x8GB) 4400MHz DDR5 4 DIMM slots (dual channel) Up to 128GB or up to 3200MHz Non-ECC & ECC DDR4 Memory Hard Drive: M.2 2280 512GB NVM gen4 Class 40 Optical Drive: 8x DVD ROM Graphics: GeForce RTX 3070 Ti 8GB GDDR6X DX12 Graphics Card. Keyboard: KB216 Multimedia USB Keyboard Mouse: Optical Mouse Operating System: Windows 11 Professional (64Bit) + DELL MONITOR P2722H 27 INCH","No",2]
[]
[null,"Supply PTZ CAMERA Keyboard","No",2]
[]
[null,"Supply Ergonomic designed Control room furniture. 2 to 3 operator desk, cable management  and seating","Sum",1]
[]
[null,"Supply and  Installation surface cable hardware. Inclusice of Bosal steel conduits, clamps, PVC trunking, power skirting etc)","Sum",1]
[]
[null,"Supply RM-300X D00 - Remote Microphone for VX-3000 Series","No",1]
[]
[null,"Supply IP Horn Maximum sound pressure level is 124dB at 15W powered with POE+","No",15]
[]
[null,"Supply and install and splice 6 core Single mode fiber cable","m",1000]
[]
[null,"Supply and install 5.6m Galvanised steel stepped pole with access opening cover plate to have 250mm  x 250mm base plate","No",44]
[]
[null,"Supply and install 50 x 3 Flat Copper fastened to H.D Bolts with 2 Nuts and 2 Washers (450mm width)","No",12]
[]
[null,"Supply and install 4 x M20 Rods approximately 700mm long, 16 x M20 Nuts and 12 x  Washers per stub column to receive galvanised pole","No",44]
[]
[null,"Supply Fiber patch panels","No",15]
[]
[null,"Supply and install 465 x 145mm Inspection Boxes (Junction Boxes) mounted on concrete poles","No",15]
[]
[null,"Networking Hardware Per Pole and Head end equipment (Field Hardened PoE switches, media converters, SFP modules, rack/s)","No",15]
[]
[null,"Supply and install Power Reticulation with CoC for poles and head end equipment (power cabling, power points, surge protection, Power cable installation and termination certification)","No",15]
[]
[null,"Supply and install Network CAT6e Cabling, termination per pole and head end equipment","No",15]
[]
[null,"3-Phase 400V 100A IP65 DB Box","No",4]
[]
[null,"DB Support Brackets","No",4]
[]
[null,"60W LED High performance Luminaire including fixation","No",44]
[]
[null,"4mm2/4C/PCV/SWA/PVC Power supply cables","m",1200]
[]
[null,"16mm2/4C/PCV/SWA/PVC Power supply cables","m",1200]
[]
[null,"Cable termination","Sum",1]
[]
[null,"Commissioning, Testing, Integration and handover of the whole system with As Built drawings and Manuals","Days",5]
[]
[null,"Conduit Mandrel Test"]
[]
[null,"The contractor to conduct a mandrel test on the conduit pipes after installation is complete","Days",3]
[]
[null,"Plant labelling"]
[]
[null,"Anodised Aluminium tags - Label Type GA","No",103]
[]
[null,"Carried to Summary"]
[]
[null,"BUILDERS WORK"]
[null,"BILL NO 8: THERMAL IMAGING SYSTEM (CCTV) (PROVISIONAL)"]
[]
[]
[null,"SUMMARY"]
[]
["BILL 1","PRELIMINARIES & GENERAL"]
[]
["BILL 2","ALTERATIONS"]
[]
["BILL 3","EARTHWORKS"]
[]
["BILL 4","CONCRETE, FORMWORK AND REINFORCEMENT "]
[]
["BILL 5","STRUCTURAL STEEL"]
[]
["BILL 6","METALWORK"]
[]
["BILL 7","EXTERNAL WORKS, MANHOLES, ROADS, SLEEVES, etc"]
[]
["BILL 8","THERMAL IMAGING SYSTEM (CCTV)"]
[]
[null,"SUB-TOTAL AMOUNT (EXCL VAT)"]
[]
[null,"ADD: 0.25% for Contract Skills Development Goal (As per CIDB)",null,{"v":0.0025,"d":"0.25%"}]
[]
[null,"TOTAL AMOUNT (EXCL VAT)"]